bitfinex-derivatives/quotes_SOLF0:USTF0_20241208
["timestamp","ask_amount","ask_price","bid_price","bid_amount"]
[1733681883462,2.1148,236.3,236.28,1.25392146]
[1733681883654,1.86,236.31,236.25,6.5987551]
[1733681883962,6.5987551,236.32,236.26,3.95197452]
[1733681884260,6.5987551,236.32,236.27,3.95197452]
[1733681884454,6.5987551,236.32,236.25,6.5987551]
[1733681884660,6.5987551,236.32,236.26,3.95190978]
[1733681884855,6.5987551,236.32,236.27,2.69783757]
[1733681885059,2.1147,236.31,236.27,2.1149]
[1733681885261,2.1147,236.31,236.28,3.95186675]
[1733681885460,2.1147,236.31,236.27,2.1149]
[1733681885664,2.1147,236.3,236.28,3.95187652]
[1733681885965,2.1147,236.3,236.27,2.1149]
[1733681886164,2.1147,236.3,236.28,3.95183849]
[1733681886360,2.1147,236.3,236.27,2.1149]
[1733681886561,2.1147,236.3,236.28,2.69776671]
[1733681886763,6.5987551,236.3,236.23,6.5987551]
[1733681887063,2.1148,236.29,236.25,2.1151]
[1733681887364,2.1148,236.29,236.26,3.95179063]
[1733681887556,2.1148,236.29,236.27,3.95183823]
[1733681887761,2.1148,236.29,236.23,6.5987551]
[1733681888061,6.5987551,236.28,236.24,9.32664873]
[1733681888259,8.7136551,236.28,236.25,8.26831556]
[1733681888561,8.7136551,236.28,236.26,3.95185814]
[1733681888757,8.7136551,236.28,236.24,2.1152]
[1733681888964,8.7136551,236.28,236.25,3.9521146]
[1733681889158,8.7136551,236.28,236.26,2.69794]
[1733681889361,8.7136551,236.28,236.25,2.1152]
[1733681889666,8.7136551,236.28,236.26,2.69802773]
[1733681889963,8.7136551,236.28,236.25,2.1152]
[1733681890164,8.7136551,236.28,236.26,3.95216749]
[1733681890467,8.7136551,236.28,236.25,2.1152]
[1733681890666,8.7136551,236.28,236.26,3.95228909]
[1733681890862,8.7136551,236.28,236.25,2.1152]
[1733681891065,8.7136551,236.28,236.26,5.01063775]
[1733681891261,8.7136551,236.28,236.27,3.95225944]
[1733681891463,8.7136551,236.28,236.27,8.26926234]
[1733681891663,8.7136551,236.28,236.27,3.95225944]
[1733681892165,2.1148,236.29,236.27,3.95225944]
[1733681892366,2.1148,236.29,236.28,3.95225944]
[1733681892867,6.5987551,236.32,236.28,8.26938324]
[1733681893067,6.5987551,236.32,236.29,8.26938324]
[1733681893268,6.5987551,236.32,236.3,3.95225944]
[1733681893468,8.7133551,236.32,236.31,2.69804196]
[1733681893669,3.9536,236.42,236.31,3.9523706]
[1733681893866,6.5987551,236.37,236.32,3.9523706]
[1733681894064,2.1143,236.35,236.32,2.1146]
[1733681895068,2.1143,236.35,236.33,2.69802773]
[1733681895266,8.7131551,236.34,236.3,2.1147]
[1733681895463,8.7131551,236.34,236.31,3.95206334]
[1733681895663,8.7131551,236.34,236.32,3.95206334]
[1733681895870,8.7131551,236.34,236.3,2.1147]
[1733681896065,8.7131551,236.34,236.31,3.95206455]
[1733681896262,8.7131551,236.34,236.32,3.95206455]
[1733681896568,8.7131551,236.34,236.3,2.1147]
[1733681896765,8.7131551,236.34,236.31,3.95187632]
[1733681896971,8.7131551,236.34,236.32,3.95187632]
[1733681897170,8.7131551,236.34,236.3,2.1147]
[1733681897568,8.7131551,236.34,236.31,9.12854591]
[1733681897763,8.7131551,236.34,236.32,2.6976715]
[1733681897972,8.7131551,236.34,236.33,3.95176353]
[1733681899173,8.7131551,236.34,236.33,2.6976715]
[1733681899374,8.7131551,236.34,236.31,2.1146]
[1733681899575,8.7131551,236.34,236.32,3.95117306]
[1733681899776,8.7131551,236.34,236.33,2.69717875]
[1733681900176,8.7131551,236.34,236.31,2.1146]
[1733681900475,8.7131551,236.34,236.32,3.95072964]
[1733681900672,2.1147,236.31,236.28,2.1149]
[1733681900973,1.86,236.38,236.29,9.32414861]
[1733681900974,6.5987551,236.32,236.29,9.32414861]
[1733681901170,2.115,236.28,236.25,2.1152]
[1733681901375,2.115,236.28,236.26,9.32447293]
[1733681901575,2.115,236.28,236.27,8.266191]
[1733681902174,8.7137551,236.28,236.27,8.266191]
[1733681902877,8.7137551,236.28,236.27,2.69708371]
[1733681903174,2.115,236.27,236.23,2.1153]
[1733681903476,2.115,236.27,236.24,8.26728241]
[1733681903676,2.115,236.27,236.25,3.9514034]
[1733681903876,2.115,236.27,236.26,3.9514034]
[1733681904179,2.115,236.27,236.26,2.69742515]
[1733681904574,2.115,236.27,236.26,3.95120142]
[1733681905783,6.5987551,236.28,236.21,2.1155]
[1733681905977,6.5987551,236.24,236.22,9.32500893]
[1733681906181,6.5987551,236.26,236.23,8.26652479]
[1733681906476,6.5987551,236.26,236.24,3.95099976]
[1733681906681,8.7138551,236.26,236.25,2.69720314]
[1733681906872,6.5987551,236.26,236.2,2.1156]
[1733681907179,6.5987551,236.26,236.21,9.32423933]
[1733681907378,2.1153,236.25,236.22,7.01206083]
[1733681907575,2.1153,236.25,236.23,3.95048258]
[1733681907770,2.1153,236.25,236.24,3.95048258]
[1733681908278,2.1153,236.25,236.24,2.69694647]
[1733681908478,2.1153,236.25,236.24,2.69640982]
[1733681908676,2.1152,236.26,236.24,2.69640982]
[1733681908877,2.1152,236.26,236.22,2.1155]
[1733681909078,2.1152,236.26,236.23,3.94984073]
[1733681909282,2.1152,236.26,236.24,2.6960611]
[1733681909481,6.5987551,236.27,236.19,6.5987551]
[1733681909679,6.5987551,236.27,236.2,9.32154597]
[1733681909878,6.5987551,236.27,236.21,9.32154597]
[1733681910071,6.5987551,236.27,236.22,8.26304411]
[1733681910274,6.5987551,236.27,236.23,3.94934635]
[1733681910480,2.1151,236.26,236.24,2.6960611]
[1733681910680,4.017,236.32,236.23,2.1154]
[1733681910681,1.86,236.31,236.23,6.5987551]
[1733681910885,1.86,236.31,236.24,2.69578815]
[1733681911180,6.5987551,236.3,236.25,2.1151]
[1733681912783,2.1149,236.28,236.25,2.1151]
[1733681913181,2.1149,236.28,236.23,8.7140551]
[1733681913379,2.1149,236.28,236.24,3.94834837]
[1733681913580,2.1149,236.28,236.23,6.5987551]
[1733681913780,2.1149,236.28,236.24,3.94834807]
[1733681914083,2.1149,236.28,236.25,2.69534841]
[1733681914276,2.1149,236.28,236.25,1.25296141]
[1733681914582,2.1149,236.28,236.24,2.1152]
[1733681914780,1.86,236.31,236.25,3.94815153]
[1733681914985,2.1148,236.3,236.25,6.5987551]
[1733681915276,8.7135551,236.3,236.25,6.5987551]
[1733681915482,2.1149,236.29,236.26,6.06327482]
[1733681915686,2.1149,236.29,236.26,2.1151]
[1733681915984,2.1146,236.33,236.28,2.1148]
[1733681916183,6.5987551,236.33,236.28,2.1148]
[1733681916881,2.1147,236.31,236.27,8.7137551]
[1733681917788,2.1147,236.31,236.27,2.115]
[1733681918175,2.1147,236.3,236.27,2.115]
[1733681918380,6.5987551,236.29,236.24,1.86]
[1733681918580,6.5987551,236.29,236.23,6.5987551]
[1733681918776,8.7136551,236.29,236.23,6.5987551]
[1733681919483,2.115,236.28,236.21,11.1373551]
[1733681919685,2.115,236.28,236.23,6.5987551]
[1733681920281,2.115,236.28,236.24,2.1153]
[1733681920679,2.115,236.28,236.25,2.69468151]
[1733681920879,2.115,236.28,236.25,3.94725934]
[1733681921080,2.115,236.28,236.26,3.94725934]
[1733681921380,2.115,236.28,236.27,3.94725934]
[1733681921582,2.115,236.28,236.24,2.1153]
[1733681921780,2.115,236.28,236.25,3.94713253]
[1733681921990,2.115,236.28,236.26,3.94713253]
[1733681922180,2.115,236.28,236.24,2.1153]
[1733681922380,2.115,236.28,236.25,3.94718425]
[1733681922685,2.115,236.28,236.24,2.1153]
[1733681922686,2.115,236.28,236.26,3.94718425]
[1733681922887,2.115,236.28,236.24,2.1153]
[1733681923086,2.115,236.28,236.25,3.94714624]
[1733681923284,2.115,236.28,236.26,3.94714624]
[1733681923490,2.115,236.28,236.24,2.1153]
[1733681923689,2.115,236.28,236.25,3.947425]
[1733681923891,2.115,236.28,236.24,2.1153]
[1733681924091,2.115,236.28,236.25,3.94752065]
[1733681924392,2.115,236.28,236.24,2.1153]
[1733681924691,2.115,236.28,236.25,3.94752055]
[1733681924891,2.115,236.28,236.24,2.1153]
[1733681925086,2.115,236.28,236.25,3.94753852]
[1733681925293,2.115,236.28,236.26,2.69475985]
[1733681925490,2.115,236.28,236.24,2.1153]
[1733681925793,2.115,236.28,236.23,6.5987551]
[1733681925794,2.115,236.28,236.25,6.0627973]
[1733681925992,2.115,236.28,236.26,2.6948086]
[1733681926193,2.115,236.28,236.25,2.1152]
[1733681926393,2.115,236.28,236.26,2.69481203]
[1733681926593,2.115,236.28,236.24,2.1153]
[1733681926794,2.115,236.28,236.25,5.00593945]
[1733681926994,2.115,236.28,236.24,2.1153]
[1733681927196,2.115,236.28,236.25,3.94760859]
[1733681927395,2.115,236.28,236.24,2.1153]
[1733681927697,2.115,236.28,236.25,3.94758984]
[1733681927893,2.115,236.28,236.24,2.1153]
[1733681928103,2.115,236.28,236.25,5.00590899]
[1733681928395,2.115,236.28,236.26,2.69484336]
[1733681928600,2.115,236.28,236.24,2.1153]
[1733681928895,2.115,236.28,236.25,8.25926293]
[1733681929096,2.115,236.28,236.26,1.05839101]
[1733681929295,2.115,236.28,236.27,3.94754872]
[1733681930192,6.5987551,236.3,236.27,3.94754872]
[1733681930394,2.1148,236.29,236.25,2.1151]
[1733681930594,2.1148,236.29,236.26,5.00593614]
[1733681930798,2.1148,236.29,236.27,3.94754513]
[1733681931096,2.1148,236.29,236.25,2.1151]
[1733681931296,2.115,236.27,236.26,5.00598874]
[1733681931502,6.5987551,236.27,236.2,7.9233551]
[1733681931699,6.5987551,236.25,236.21,11.01241144]
[1733681931997,6.5987551,236.25,236.22,9.31881528]
[1733681932193,6.5987551,236.25,236.23,5.00653296]
[1733681932398,6.5987551,236.25,236.24,2.69517645]
[1733681932800,8.7139551,236.25,236.24,2.69517645]
[1733681934902,2.1156,236.21,236.16,2.1159]
[1733681935099,8.7143551,236.21,236.17,11.01222719]
[1733681935299,2.1158,236.19,236.18,9.31838345]
[1733681935500,2.1158,236.19,236.18,5.00642505]
[1733681936094,2.1158,236.19,236.18,9.317313]
[1733681936295,2.1158,236.19,236.18,5.00622794]
[1733681938605,8.7145551,236.19,236.18,5.00622794]
[1733681938800,8.7145551,236.19,236.18,5.00630429]
[1733681939302,8.7145551,236.19,236.18,3.94757561]
[1733681939603,8.7145551,236.19,236.18,3.94512403]
[1733681940302,8.7145551,236.19,236.18,5.00384207]
[1733681940507,2.1158,236.19,236.18,5.00384207]
[1733681941106,2.1158,236.19,236.18,3.94512403]
[1733681941504,2.1159,236.18,236.14,2.1162]
[1733681941706,8.7146551,236.18,236.15,9.31107346]
[1733681942005,6.5987551,236.18,236.16,5.00297942]
[1733681942206,2.1159,236.17,236.13,8.7149551]
[1733681942408,2.1159,236.17,236.14,11.00472657]
[1733681942602,6.5987551,236.18,236.13,8.7149551]
[1733681942603,6.5987551,236.18,236.15,11.00472657]
[1733681942803,8.7145551,236.18,236.16,9.31073362]
[1733681942999,8.7145551,236.18,236.17,5.00285634]
[1733681943611,2.1161,236.16,236.12,2.1163]
[1733681943810,6.5987551,236.14,236.13,11.00598615]
[1733681944008,6.5987551,236.14,236.13,5.0034341]
[1733681944212,6.5987551,236.14,236.04,4.21738399]
[1733681944508,6.5987551,236.08,236.05,4.30744632]
[1733681944714,6.5987551,236.06,236.02,2.1172]
[1733681945004,6.5987551,236.06,236.03,4.30766688]
[1733681945208,6.5987551,236.06,236.02,2.1172]
[1733681945804,8.7154551,236.08,236.04,2.1171]
[1733681946009,1.86,236.09,236.04,6.5987551]
[1733681946308,1.86,236.09,236.05,2.1169]
[1733681946606,1.86,236.12,236.06,6.5987551]
[1733681946807,6.5987551,236.13,236.06,6.5987551]
[1733681947009,8.7150551,236.13,236.08,8.7154551]
[1733681947308,8.4587551,236.14,236.08,6.5987551]
[1733681948702,10.5749551,236.14,236.09,2.1166]
[1733681949504,6.5987551,236.12,236.09,2.1166]
[1733681950111,10.5749551,236.14,236.09,2.1166]
[1733681953111,8.4587551,236.17,236.12,2.1164]
[1733681954512,1.86,236.21,236.14,6.5987551]
[1733681954820,8.4587551,236.21,236.16,2.116]
[1733681955014,4.0584,236.28,236.16,6.5987551]
[1733681955210,6.5987551,236.22,236.16,6.5987551]
[1733681955514,8.7142551,236.22,236.16,6.5987551]
[1733681956609,8.7142551,236.22,236.18,2.1158]
[1733681957408,6.5987551,236.22,236.16,6.5987551]
[1733681957813,8.4587551,236.27,236.2,6.5987551]
[1733681958016,6.5987551,236.27,236.2,6.5987551]
[1733681958418,8.7137551,236.27,236.22,2.1154]
[1733681958717,6.5987551,236.25,236.18,6.5987551]
[1733681959311,6.5987551,236.25,236.21,2.1155]
[1733681960218,8.7139551,236.25,236.21,2.1155]
[1733681960519,8.7139551,236.25,236.2,2.1156]
[1733681962012,2.1153,236.24,236.2,2.1156]
[1733681962822,6.5987551,236.23,236.17,1.86]
[1733681963012,6.5987551,236.21,236.14,1.86]
[1733681963317,6.5987551,236.21,236.15,6.5987551]
[1733681964719,8.7143551,236.21,236.17,2.1159]
[1733681965313,8.7143551,236.21,236.16,2.116]
[1733681965314,2.1157,236.2,236.16,2.116]
[1733681966823,8.7143551,236.21,236.16,2.116]
[1733681970016,2.1157,236.2,236.16,2.116]
[1733681973217,2.1156,236.21,236.17,2.1159]
[1733681973922,6.5987551,236.18,236.06,1.86]
[1733681974124,6.5987551,236.15,236.08,6.5987551]
[1733681974328,8.7148551,236.15,236.11,2.1164]
[1733681974629,6.5987551,236.13,236.07,6.5987551]
[1733681975723,6.5987551,236.13,236.09,2.1166]
[1733681975724,8.7151551,236.13,236.09,2.1166]
[1733681976930,6.5987551,236.13,236.09,2.1166]
[1733681978728,8.7150551,236.13,236.09,2.1166]
[1733681979534,2.1166,236.09,236.04,6.1204]
[1733681979825,6.5987551,236.11,236.04,4.0034]
[1733681981331,6.5987551,236.11,236.04,10.6021551]
[1733681981729,2.1166,236.1,236.06,2.1169]
[1733681983435,2.1167,236.08,236.04,2.655]
[1733681984034,6.5987551,236.09,236.04,2.655]
[1733681984335,2.1168,236.07,236.03,8.7158551]
[1733681984826,2.1168,236.07,236.03,2.1171]
[1733681985025,6.5987551,236.07,235.98,2.7485]
[1733681985231,2.117,236.05,236.01,2.1173]
[1733681985739,8.7157551,236.05,236.01,2.1173]
[1733681986035,8.7157551,236.05,236.0,2.1173]
[1733681986737,8.7157551,236.05,236.01,2.1173]
[1733681989229,1.86,236.08,235.99,2.1175]
[1733681989230,2.1172,236.04,235.99,2.1175]
[1733681989538,8.7159551,236.04,235.99,2.1175]
[1733681990434,2.117,236.05,235.98,6.5987551]
[1733681990741,2.117,236.05,236.0,6.5987551]
[1733681991735,2.117,236.05,236.01,2.1173]
[1733681992330,8.7157551,236.05,236.01,2.1173]
[1733681995342,6.5987551,236.03,236.01,2.1173]
[1733681997642,2.117,236.05,236.01,2.1173]
[1733681997643,8.7157551,236.05,236.01,2.1173]
[1733682005848,6.5987551,236.03,236.01,2.1173]
[1733682006146,8.4587551,236.03,235.92,1.86]
[1733682006347,6.5987551,236.01,235.95,6.5987551]
[1733682006747,6.5987551,236.01,235.96,2.1177]
[1733682006952,6.5987551,235.99,235.91,2.6601]
[1733682007141,6.5987551,235.99,235.92,4.9377598]
[1733682007345,6.5987551,235.97,235.91,9.2588551]
[1733682007947,6.5987551,235.97,235.95,2.1178]
[1733682008542,6.5987551,235.97,235.91,9.2588551]
[1733682008543,6.5987551,235.99,235.93,6.5987551]
[1733682008749,1.86,236.03,235.93,6.5987551]
[1733682008951,6.5987551,236.0,235.93,6.5987551]
[1733682009250,2.1173,236.02,235.97,2.1177]
[1733682009456,6.5987551,236.0,235.97,2.1177]
[1733682011344,2.1173,236.02,235.98,2.1176]
[1733682011549,1.86,236.03,235.95,6.5987551]
[1733682011851,8.4587551,236.03,235.97,6.5987551]
[1733682012052,6.5987551,236.03,235.97,6.5987551]
[1733682012250,8.4587551,236.05,236.02,2.1172]
[1733682013044,8.4587551,236.05,235.99,6.5987551]
[1733682013350,1.86,236.05,236.03,2.1171]
[1733682013553,1.86,236.08,236.01,6.5987551]
[1733682013748,8.4587551,236.08,236.01,6.5987551]
[1733682014752,6.5987551,236.06,236.01,6.5987551]
[1733682015257,6.5987551,236.06,236.04,2.117]
[1733682015451,6.5987551,236.06,236.01,6.5987551]
[1733682016055,6.5987551,236.06,235.97,1.326]
[1733682016250,6.5987551,236.06,236.0,6.5987551]
[1733682016861,8.7157551,236.06,236.02,2.1172]
[1733682017160,6.5987551,236.04,235.96,1.86]
[1733682017358,6.5987551,236.04,235.97,9.18046663]
[1733682017556,6.5987551,236.04,235.98,3.88861019]
[1733682017761,6.5987551,236.02,235.97,6.5987551]
[1733682017961,6.5987551,236.02,235.98,2.64681242]
[1733682018161,6.5987551,236.02,235.97,6.5987551]
[1733682018463,6.5987551,236.0,235.91,3.9879]
[1733682018760,6.5987551,236.0,235.93,6.5987551]
[1733682018955,6.5987551,236.0,235.94,4.95227478]
[1733682019155,6.5987551,235.98,235.95,4.95227478]
[1733682019356,6.5987551,235.98,235.96,1.24489133]
[1733682019553,6.5987551,235.98,235.94,2.1179]
[1733682019762,6.5987551,235.98,235.95,4.95467068]
[1733682019962,6.5987551,235.98,235.94,2.1179]
[1733682020559,8.7164551,235.98,235.94,2.1179]
[1733682022652,6.5987551,235.96,235.95,3.89832413]
[1733682023053,6.5987551,235.96,235.92,2.1181]
[1733682023253,6.5987551,235.96,235.93,9.20278082]
[1733682023460,8.7165551,235.96,235.94,3.89802099]
[1733682023659,8.7165551,235.96,235.92,2.1181]
[1733682023858,8.7165551,235.96,235.93,4.95951083]
[1733682024058,2.1178,235.96,235.94,3.89972929]
[1733682024366,6.5987551,235.95,235.92,2.1181]
[1733682024662,6.5987551,235.95,235.93,4.96076353]
[1733682024857,6.5987551,235.95,235.94,4.96076353]
[1733682025265,6.5987551,235.95,235.94,4.96075133]
[1733682025668,6.5987551,235.95,235.94,9.20773108]
[1733682028271,8.7164551,235.97,235.94,9.20773108]
[1733682028470,8.7164551,235.97,235.95,9.20773108]
[1733682028675,8.7164551,235.97,235.96,4.96162188]
[1733682029370,12.69,236.13,235.96,4.96162188]
[1733682029371,2.1175,235.99,235.96,4.96162188]
[1733682029575,1.86,236.02,235.97,4.96162188]
[1733682029873,8.4587551,236.03,235.98,11.56037698]
[1733682030068,8.4587551,236.03,235.98,6.5987551]
[1733682030267,10.5759551,236.03,235.99,2.1175]
[1733682030468,8.4587551,236.03,235.96,6.5987551]
[1733682030668,8.4587551,236.03,235.97,4.96089539]
[1733682030868,8.4587551,236.03,235.98,4.96089539]
[1733682031077,8.4587551,236.03,235.96,6.5987551]
[1733682031279,8.4587551,236.03,235.97,4.9609594]
[1733682031480,8.4587551,236.03,235.98,4.9609594]
[1733682031779,2.1173,236.02,235.98,2.1176]
[1733682032771,10.5759551,236.03,235.99,2.1175]
[1733682033471,10.5759551,236.03,236.0,4.96110875]
[1733682033674,10.5759551,236.03,236.01,3.90158705]
[1733682033877,10.5759551,236.03,235.99,2.1175]
[1733682034078,10.5759551,236.03,236.0,6.01885825]
[1733682034376,10.5759551,236.03,236.01,1.24585302]
[1733682034572,6.5987551,236.03,235.98,6.5987551]
[1733682034781,1.86,236.04,236.0,2.1173]
[1733682034975,8.7157551,236.05,236.01,3.90155726]
[1733682035176,6.5987551,236.05,236.0,2.1173]
[1733682035478,6.5987551,236.05,236.0,6.5987551]
[1733682035479,8.7157551,236.05,236.0,6.5987551]
[1733682035682,8.7157551,236.05,236.01,3.90163835]
[1733682035874,8.7157551,236.05,236.0,6.5987551]
[1733682036070,8.7157551,236.05,236.01,3.90162034]
[1733682036271,8.7157551,236.05,236.0,6.5987551]
[1733682036573,8.7157551,236.05,236.01,6.01906774]
[1733682036771,6.5987551,236.03,235.98,6.5987551]
[1733682037077,6.5987551,236.03,235.99,4.96126209]
[1733682037274,6.5987551,236.03,236.0,3.90177549]
[1733682037472,2.1172,236.02,235.99,2.1174]
[1733682037677,6.5987551,236.01,236.0,3.9021674]
[1733682037869,6.5987551,236.01,235.95,3.9318]
[1733682038074,6.5987551,236.01,235.96,9.21176608]
[1733682038269,6.5987551,236.01,235.97,9.21176608]
[1733682038476,6.5987551,236.01,235.98,4.96188195]
[1733682038674,2.1175,236.0,235.99,3.90231005]
[1733682038874,2.1175,236.0,235.99,2.65617758]
[1733682039078,2.1175,236.0,235.99,3.90242421]
[1733682039380,2.1175,236.0,235.96,2.1178]
[1733682039576,2.1175,236.0,235.97,4.96244172]
[1733682039874,2.1175,236.0,235.98,3.90282316]
[1733682040075,2.1175,236.0,235.96,2.1178]
[1733682040276,2.1175,236.0,235.97,4.96251451]
[1733682040472,2.1175,236.0,235.98,4.96250888]
[1733682040675,2.1175,236.0,235.96,8.7165551]
[1733682040981,2.1175,236.0,235.97,4.96249754]
[1733682041285,2.1175,236.0,235.98,4.96249754]
[1733682041579,2.1175,236.0,235.96,8.7165551]
[1733682041781,2.1175,236.0,235.97,4.96244818]
[1733682041983,2.1175,236.0,235.98,4.96244818]
[1733682042277,2.1175,236.0,235.96,8.7165551]
[1733682042682,2.1175,236.0,235.97,4.96249417]
[1733682042882,2.1175,236.0,235.98,3.90290022]
[1733682043081,2.1175,236.0,235.96,8.7165551]
[1733682045180,6.5987551,236.03,235.98,6.5987551]
[1733682045380,2.1172,236.03,235.98,6.5987551]
[1733682046185,2.1172,236.03,235.99,2.1174]
[1733682046383,2.1173,236.02,235.98,6.5987551]
[1733682047580,2.1173,236.02,235.98,8.7163551]
[1733682047779,2.1173,236.02,235.99,3.71609479]
[1733682047985,2.1173,236.02,235.98,8.7163551]
[1733682048182,2.1173,236.02,235.99,3.90301748]
[1733682048379,2.1173,236.02,235.98,8.7163551]
[1733682048583,2.1174,236.0,235.99,2.65681841]
[1733682048786,2.1174,236.0,235.96,2.1177]
[1733682048978,2.1174,236.0,235.97,3.90330365]
[1733682049281,2.1175,235.99,235.96,2.1177]
[1733682053483,1.86,236.06,235.97,6.5987551]
[1733682053678,8.4587551,236.06,235.99,6.5987551]
[1733682054081,4.2322,236.15,235.99,6.5987551]
[1733682054376,6.5987551,236.07,236.01,6.5987551]
[1733682054577,8.4587551,236.09,236.03,2.1171]
[1733682054787,8.4587551,236.09,236.01,6.5987551]
[1733682055387,2.1168,236.07,236.03,2.1171]
[1733682057284,2.1169,236.06,236.03,2.1171]
[1733682057990,2.1169,236.06,236.02,2.1172]
[1733682058381,1.86,236.09,235.96,6.5987551]
[1733682058382,6.5987551,236.03,235.96,6.5987551]
[1733682058585,6.5987551,236.03,235.98,2.1176]
[1733682058783,6.5987551,236.03,235.99,3.90107254]
[1733682058984,6.5987551,236.01,235.95,11.0907551]
[1733682059184,6.5987551,236.01,235.97,2.1177]
[1733682059185,8.7161551,236.01,235.97,2.1177]
[1733682059483,8.7161551,236.01,235.98,3.90144321]
[1733682059687,8.7161551,236.01,235.97,2.1177]
[1733682060088,8.7161551,236.01,235.98,3.90181968]
[1733682060289,1.86,236.04,235.95,11.0907551]
[1733682060488,1.86,236.04,235.99,2.1175]
[1733682060789,1.86,236.04,235.99,6.5987551]
[1733682060988,1.86,236.04,236.01,2.1173]
[1733682060989,3.9771,236.04,236.01,2.1173]
[1733682061190,3.9771,236.04,235.99,6.5987551]
[1733682061394,3.9771,236.04,236.0,3.90174049]
[1733682061588,3.9771,236.04,235.97,6.5987551]
[1733682061793,10.5758551,236.04,235.98,9.21084462]
[1733682062090,10.5758551,236.04,235.97,6.5987551]
[1733682062091,8.4587551,236.04,236.01,2.1173]
[1733682062290,1.86,236.04,236.01,2.1173]
[1733682062492,1.3334,236.16,236.01,6.5987551]
[1733682062688,1.3334,236.16,236.03,6.5987551]
[1733682062888,6.5987551,236.12,236.05,6.5987551]
[1733682063382,2.1165,236.11,236.06,2.1168]
[1733682064192,8.7153551,236.1,236.06,2.1168]
[1733682064396,6.5987551,236.1,236.03,7.9595551]
[1733682064696,8.7154551,236.08,236.03,1.3608]
[1733682064883,6.5987551,236.08,236.03,1.3608]
[1733682065090,6.5987551,236.08,236.03,3.4779]
[1733682065291,6.5987551,236.08,236.03,1.3608]
[1733682065491,2.1167,236.09,236.03,1.3608]
[1733682066296,2.1167,236.09,236.05,2.1169]
[1733682066594,2.1165,236.1,236.04,6.5987551]
[1733682067296,2.1165,236.1,236.06,2.1169]
[1733682067598,6.5987551,236.09,236.06,2.1169]
[1733682067797,8.7153551,236.09,236.06,2.1169]
[1733682068397,8.7153551,236.09,236.05,2.117]
[1733682068593,6.5987551,236.07,236.03,1.3608]
[1733682069299,8.7155551,236.07,236.03,3.4779]
[1733682070295,6.5987551,236.07,236.04,2.1171]
[1733682071098,6.5987551,236.07,236.03,1.3608]
[1733682071289,8.7155551,236.07,236.03,3.478]
[1733682073202,2.1168,236.07,236.03,3.478]
[1733682079700,1.3334,236.16,236.04,6.5987551]
[1733682079894,6.5987551,236.12,236.06,6.5987551]
[1733682080091,1.86,236.14,236.08,6.5987551]
[1733682080296,8.4587551,236.15,236.08,6.5987551]
[1733682081000,2.1163,236.13,236.09,2.1165]
[1733682081704,2.1164,236.12,236.05,1.86]
[1733682081899,6.5987551,236.11,236.07,2.1168]
[1733682083600,2.1165,236.1,236.07,2.1168]
[1733682083798,6.5987551,236.09,236.05,2.117]
[1733682084504,8.7154551,236.09,236.05,2.117]
[1733682085906,6.5987551,236.11,236.04,7.9845551]
[1733682086101,2.1165,236.1,236.06,2.1169]
[1733682087099,2.1165,236.1,236.06,8.7156551]
[1733682088105,2.1165,236.1,236.06,2.1169]
[1733682089506,2.1166,236.09,236.06,2.1169]
[1733682092803,2.1167,236.08,236.04,3.5028]
[1733682093004,2.1167,236.08,235.83,11.69946021]
[1733682093005,1.86,236.09,235.98,1.86]
[1733682093212,6.5987551,236.07,236.0,6.5987551]
[1733682093504,6.5987551,236.05,235.97,1.86]
[1733682093711,6.5987551,236.05,235.98,4.95703513]
[1733682094005,6.5987551,236.05,235.99,6.5987551]
[1733682094305,6.5987551,236.05,236.0,2.65305019]
[1733682094610,6.5987551,236.05,236.01,4.95734868]
[1733682094908,6.5987551,236.05,235.99,6.5987551]
[1733682095104,6.5987551,236.05,236.0,4.95791858]
[1733682095304,6.5987551,236.03,236.01,3.89847926]
[1733682095511,6.5987551,236.03,235.95,2.6659]
[1733682095706,8.7161551,236.01,235.97,2.1177]
[1733682095901,6.5987551,235.99,235.98,4.95963773]
[1733682096107,6.5987551,235.99,235.95,2.6659]
[1733682096409,8.7162551,235.99,235.96,4.96048635]
[1733682096610,8.7162551,235.99,235.94,2.118]
[1733682096802,8.7162551,235.99,235.95,4.95987992]
[1733682097104,2.1176,235.98,235.94,2.118]
[1733682097510,8.7166551,235.95,235.9,1.86]